Workbook

Sheet SM-sarja
B1: Toivo Korhonen | E1: 19.12.1958 Outokumpu
B2: SUPERPESIS | E2: Runkosarja | I2: Kärkilyönnit (KL), pesänvälit | P2: Runkosarja TOP-30 | U2: Alempi loppusarja | AB2: Ylempi loppusarja TOP-10 | AG2: Play off, voitot, voittoprosentti | AL2: Arvo-ottelut | AO2: Mitalit
B3: Vuosi | C3: Sija | D3: Seura | E3: OTT | F3: KUN | G3: LÖI | H3: TOI | I3: KL | J3: 0 > 1 | K3: 1 > 2 | L3: 2 > 3 | M3: 3 > k | N3: KL-% | P3: LÖI | Q3: TOI | R3: L+T | S3: KL | U3: OTT | V3: KUN | W3: LÖI | X3: TOI | Y3: KL | Z3: KL-% | AB3: LÖI | AC3: TOI | AD3: L+T | AE3: KL | AG3: Puolivälierät | AH3: Välierät | AI3: Pronssi | AJ3: Finaalit | AL3: IL | AM3: LL | AN3: Cup | AO3: K | AP3: H | AQ3: P
B4: 1981 | C4: 9. | D4: KPL | E4: 15 | F4: 0 | G4: 4 | H4: 5 | I4: 52 | J4: 12 | K4: 21 | L4: 15 | M4: 4 | N4: 47.3 % | U4: 2 | V4: 0 | W4: 2 | X4: 1 | Y4: 8 | Z4: 50.0 % | AA4: 0
B5: 1982 | C5: 11. | D5: KPL | E5: 7 | F5: 0 | G5: 3 | H5: 4 | I5: 29 | J5: 5 | K5: 7 | L5: 14 | M5: 3 | N5: 56.9 % | U5: 2 | V5: 0 | W5: 0 | X5: 0 | Y5: 2 | Z5: 22.2 % | AA5: 0
B6: 1983 | C6: 2. | D6: KPL | F6: ykkössarja | AN6: 1
B7: 1984 | C7: 8. | D7: KPL | E7: 22 | F7: 1 | G7: 12 | H7: 9 | I7: 79 | J7: 22 | K7: 21 | L7: 23 | M7: 13 | N7: 45.1 % | U7: 6 | V7: 1 | W7: 9 | X7: 4 | Y7: 32 | Z7: 61.5 % | AA7: 0
B8: 1985 | C8: 4. | D8: KPL | E8: 22 | F8: 2 | G8: 11 | H8: 10 | I8: 73 | J8: 24 | K8: 15 | L8: 21 | M8: 13 | N8: 44.3 % | AA8: 0 | AG8: Mitalisarja 4.
B9: 1986 | C9: 11. | D9: KPL | E9: 22 | F9: 0 | G9: 7 | H9: 8 | I9: 51 | J9: 20 | K9: 15 | L9: 9 | M9: 7 | N9: 33.8 % | U9: 5 | V9: 1 | W9: 5 | X9: 5 | Y9: 22 | Z9: 59.5 % | AA9: 66
B10: Yhteensä | E10: 88 | F10: 3 | G10: 37 | H10: 36 | I10: 284 | J10: 83 | K10: 79 | L10: 82 | M10: 40 | N10: 43.6 % | P10: 0-0-0 | Q10: 0-0-0 | R10: 0-0-0 | S10: 0-0-0 | U10: 15 | V10: 2 | W10: 16 | X10: 10 | Y10: 64 | Z10: 56.1 % | AA10: =SUM(AA3:AA9) -> 66 | AB10: 0-0-0 | AC10: 0-0-0 | AD10: 0-0-0 | AE10: 0-0-0 | AG10: 0/0 | AH10: 0/0 | AI10: 0/0 | AJ10: 0/0 | AL10: 0 | AM10: 0 | AN10: 1 | AO10: 0 | AP10: 0 | AQ10: 0
AG11: 0.0 % | AH11: 0.0 % | AI11: 0.0 % | AJ11: 0.0 %
B12: Pesispörssi | D12: 201.7
B14: URA SUPERISSA | E14: OTT | F14: KUN | G14: LÖI | H14: TOI | I14: KL | K14: ka/L | L14: ka/T | M14: ka/KL | N14: KL-% | P14: ENSIMMÄISET RUNKOSARJASSA | AG14: ENSIMMÄISET PUDOTUSPELEISSÄ | AL14: YLEISÖ
B15: Runkosarja | E15: 88 | F15: 3 | G15: 37 | H15: 36 | I15: 284 | K15: 0.45 | L15: 0.41 | M15: 3.23 | N15: 43.6 % | P15: Ottelu | R15: 07.06. 1981 AA - KPL 12-2 | Y15: 1. ottelu | AB15: 22 v 5 kk 19 pv | AG15: Ottelu | AH15: 1. 14.08. 1985 Kiri - KPL 5-5 | AL15: 2095 | AN15: 25 v 7 kk 26 pv
B16: Ylempi loppusarja | E16: 5 | F16: 0 | G16: 3 | H16: 2 | I16: 11 | K16: =PRODUCT((F16+G16)/E16) -> 0.60 | L16: =PRODUCT(H16/E16) -> 0.40 | M16: =PRODUCT(I16/E16) -> 2.20 | N16: 28.9 % | P16: Lyöty | R16: 05.07. 1981 SMJ - KPL 6-8 | Y16: 7. ottelu | AB16: 22 v 6 kk 16 pv | AG16: Lyöty | AH16: 2. 18.08. 1985 KPL - AA 10-9 | AL16: 3020 | AN16: 25 v 7 kk 30 pv
B17: Alempi loppusarja | E17: 15 | F17: 2 | G17: 16 | H17: 10 | I17: 64 | K17: =PRODUCT((F17+G17)/E17) -> 1.20 | L17: =PRODUCT(H17/E17) -> 0.67 | M17: =PRODUCT(I17/E17) -> 4.27 | N17: 56.1 % | P17: Tuotu | R17: 17.06. 1981 KPL - IPV 1-7 | Y17: 4. ottelu | AB17: 22 v 5 kk 29 pv | AG17: Tuotu | AH17: 5. 28.08. 1985 KPL - Kiri 8-13 | AL17: 1630 | AN17: 26 v 8 kk 9 pv
B18: KAIKKI | E18: 108 | F18: 5 | G18: 56 | H18: 48 | I18: 359 | K18: =PRODUCT((F18+G18)/E18) -> 0.56 | L18: =PRODUCT(H18/E18) -> 0.44 | M18: =PRODUCT(I18/E18) -> 3.32 | N18: 44.7 % | P18: Kunnari | R18: 01.08. 1984 KPL - ViVe 17-6 | Y18: 56. ottelu | AB18: 25 v 7 kk 13 pv | AG18: Kunnari
B20: Seurat | D20: OkuP = Outokummun Partio (1941), kasvattajaseura
D21: KPL = Kouvolan Pallonlyöjät (1931)

Sheet MYP
B1: Toivo Korhonen | E1: 19.12.1958 Outokumpu
B2: YKKÖSPESIS | E2: Runkosarja | L2: Runkosarja TOP-10 | Q2: Jatkosarjat | X2: SUOMENSARJA | AA2: Runkosarja | AH2: Runkosarja TOP-10 | AM2: Jatkosarjat
B3: Vuosi | C3: Sija | D3: Seura | E3: OTT | F3: KUN | G3: LÖI | H3: TOI | I3: KL | J3: KL-% | L3: LÖI | M3: TOI | N3: L+T | O3: KL | Q3: OTT | R3: KUN | S3: LÖI | T3: TOI | U3: KL | V3: KL-% | X3: Vuosi | Y3: Sija | Z3: Seura | AA3: OTT | AB3: KUN | AC3: LÖI | AD3: TOI | AE3: KL | AF3: KL-% | AH3: LÖI | AI3: TOI | AJ3: L+T | AK3: KL | AM3: OTT | AN3: KUN | AO3: LÖI | AP3: TOI | AQ3: KL | AR3: KL-%
B4: 1983 | C4: 2. | D4: KPL | E4: 10 | F4: 0 | G4: 14 | H4: 10 | Q4: 10 | R4: 0 | S4: 3 | T4: 10
B5: YHTEENSÄ | E5: =SUM(E4:E4) -> 10 | F5: =SUM(F4:F4) -> 0 | G5: =SUM(G4:G4) -> 14 | H5: =SUM(H4:H4) -> 10 | I5: =SUM(I4:I4) -> 0 | J5: 0.0 % | K5: =SUM(K4:K4) -> 0 | Q5: =SUM(Q4:Q4) -> 10 | R5: =SUM(R4:R4) -> 0 | S5: =SUM(S4:S4) -> 3 | T5: =SUM(T4:T4) -> 10 | U5: =SUM(U4:U4) -> 0 | V5: 0.0 % | W5: =SUM(W4:W4) -> 0 | X5: YHTEENSÄ | AA5: =SUM(AA4:AA4) -> 0 | AB5: =SUM(AB4:AB4) -> 0 | AC5: =SUM(AC4:AC4) -> 0 | AD5: =SUM(AD4:AD4) -> 0 | AE5: =SUM(AE4:AE4) -> 0 | AF5: 0.0 % | AG5: =SUM(AG4:AG4) -> 0 | AM5: =SUM(AM4:AM4) -> 0 | AN5: =SUM(AN4:AN4) -> 0 | AO5: =SUM(AO4:AO4) -> 0 | AP5: =SUM(AP4:AP4) -> 0 | AQ5: =SUM(AQ4:AQ4) -> 0 | AR5: 0.0 % | AS5: =SUM(AS4:AS4) -> 0
B7: KAIKKI OTTELUT | E7: OTT | F7: KUN | G7: LÖI | H7: TOI | I7: KL | J7: KL-% | L7: ka/L | M7: ka/T | N7: ka/l+t | O7: ka/kl | R7: Seurat | T7: KPL = Kouvolan Pallonlyöjät (1931)
B8: SUPERPESIS | E8: 109 | F8: 5 | G8: 56 | H8: 48 | I8: 359 | J8: 44.7 % | K8: =PRODUCT(I8/J8) -> 803.1319911 | L8: =PRODUCT((F8+G8)/E8) -> 0.56 | M8: =PRODUCT(H8/E8) -> 0.44 | N8: =PRODUCT((F8+G8+H8)/E8) -> 1.00 | O8: =PRODUCT(I8/E8) -> 3.29
B9: YKKÖSPESIS | E9: =PRODUCT(E5+Q5) -> 20 | F9: =PRODUCT(F5+R5) -> 0 | G9: =PRODUCT(G5+S5) -> 17 | H9: =PRODUCT(H5+T5) -> 20 | I9: =PRODUCT(I5+U5) -> 0 | J9: 0.0 % | K9: 0 | L9: =PRODUCT((F9+G9)/E9) -> 0.85 | M9: =PRODUCT(H9/E9) -> 1.00 | N9: =PRODUCT((F9+G9+H9)/E9) -> 1.85 | O9: =PRODUCT(I9/E9) -> 0.00
B10: SUOMENSARJA | E10: =PRODUCT(AA5+AM5) -> 0 | F10: =PRODUCT(AB5+AN5) -> 0 | G10: =PRODUCT(AC5+AO5) -> 0 | H10: =PRODUCT(AD5+AP5) -> 0 | I10: =PRODUCT(AE5+AQ5) -> 0 | J10: 0.0 % | K10: 0 | L10: 0.00 | M10: 0.00 | N10: 0.00 | O10: 0.00
B11: YHTEENSÄ | E11: =SUM(E8:E10) -> 129 | F11: =SUM(F8:F10) -> 5 | G11: 73 | H11: 68 | I11: 359 | J11: 0.0 % | K11: =SUM(K8:K10) -> 803.1319911 | L11: =PRODUCT((F11+G11)/E11) -> 0.60 | M11: =PRODUCT(H11/E11) -> 0.53 | N11: =PRODUCT((F11+G11+H11)/E11) -> 1.13 | O11: 3.29

Sheet Pelinjohtaja
B1: PELINJOHTAJAKORTTI
B2: Toivo Korhonen | D2: 19.12.1958 Outokumpu
B3: NSU | C3: Runkosarja | J3: Ylempi loppusarja | N3: Alempi loppusarja | R3: Mitalit | U3: Huomautuksia
B4: Vuosi | C4: Seura | D4: Sija | E4: O | F4: V | G4: H | H4: Voitto-% | J4: O | K4: V | L4: H | M4: Voitto-% | N4: O | O4: V | P4: H | Q4: Voitto-% | R4: 1 | S4: 2 | T4: 3
B5: 1995 | C5: Pesä Ysit | D5: 12. | E5: 1 | F5: 0 | G5: 1 | H5: =PRODUCT(F5/E5) -> 0.0 %
B6: Yhteensä | E6: =SUM(E5:E5) -> 1 | F6: =SUM(F5:F5) -> 0 | G6: =SUM(G5:G5) -> 1 | H6: =PRODUCT(F6/E6) -> 0.0 % | J6: =SUM(J5:J5) -> 0 | K6: =SUM(K5:K5) -> 0 | L6: =SUM(L5:L5) -> 0 | M6: 0.0 % | N6: =SUM(N5:N5) -> 0 | O6: =SUM(O5:O5) -> 0 | P6: =SUM(P5:P5) -> 0 | Q6: 0.0 % | R6: =SUM(R5:R5) -> 0 | S6: =SUM(S5:S5) -> 0 | T6: =SUM(T5:T5) -> 0
B8: URA SUPERISSA | E8: O | F8: V | G8: H | H8: Voitto-% | J8: PLAY OFF | M8: SARJAT | N8: O | O8: V | P8: H | Q8: Voitto-%
B9: Runkosarja | E9: =PRODUCT(E6) -> 1 | F9: =PRODUCT(F6) -> 0 | G9: =PRODUCT(G6) -> 1 | H9: =PRODUCT(F9/E9) -> 0.0 % | J9: Puolivälierät
B10: Ylempi loppusarja | J10: Välierät
B11: Alempi loppusarja | J11: Finaalit
B12: KAIKKI | E12: =SUM(E9:E11) -> 1 | F12: =SUM(F9:F11) -> 0 | G12: =SUM(G9:G11) -> 1 | H12: =PRODUCT(F12/E12) -> 0.0 % | J12: KAIKKI
B14: Seurat: | C14: Pesä Ysit = Pesä Ysit, Lappeenranta (1976)

Sheet Kärkilyönnit
B1: KÄRKILYÖNNIT RUNKOSARJASSA | V1: VUOSITTAISET SIJOITUKSET TOP - 30
G2: 0 > 1 | J2: 1 > 2 | M2: 2 > 3 | P2: 3 > k | S2: Yhteensä
B3: Vuosi | C3: Sija | D3: Seura | E3: OTT | F3: KL | G3: YHT | H3: % | I3: KL | J3: YHT | K3: % | L3: KL | M3: YHT | N3: % | O3: KL | P3: YHT | Q3: % | R3: KL | S3: YHT | T3: % | V3: Vuosi | W3: Sija | X3: Seura | Y3: 0 > 1 | Z3: 1 > 2 | AA3: 2 > 3 | AB3: 3 > k | AC3: KL
B4: 1981 | C4: 9. | D4: KPL | E4: 15 | F4: 12 | G4: 37 | H4: =PRODUCT(F4/G4) -> 32.4 % | I4: 21 | J4: 30 | K4: =PRODUCT(I4/J4) -> 70.0 % | L4: 15 | M4: 25 | N4: =PRODUCT(L4/M4) -> 60.0 % | O4: 4 | P4: 18 | Q4: =PRODUCT(O4/P4) -> 22.2 % | R4: 52 | S4: =PRODUCT(G4+J4+M4+P4) -> 110 | T4: =PRODUCT(R4/S4) -> 47.3 % | V4: 1981 | W4: 9. | X4: KPL
B5: 1982 | C5: 10. | D5: KPL | E5: 7 | F5: 5 | G5: 9 | H5: =PRODUCT(F5/G5) -> 55.6 % | I5: 7 | J5: 15 | K5: =PRODUCT(I5/J5) -> 46.7 % | L5: 14 | M5: 19 | N5: =PRODUCT(L5/M5) -> 73.7 % | O5: 3 | P5: 8 | Q5: =PRODUCT(O5/P5) -> 37.5 % | R5: 29 | S5: =PRODUCT(G5+J5+M5+P5) -> 51 | T5: =PRODUCT(R5/S5) -> 56.9 % | V5: 1982 | W5: 10. | X5: KPL
B6: 1983 | V6: 1983
B7: 1984 | C7: 9. | D7: KPL | E7: 22 | F7: 22 | G7: 51 | H7: =PRODUCT(F7/G7) -> 43.1 % | I7: 21 | J7: 52 | K7: =PRODUCT(I7/J7) -> 40.4 % | L7: 23 | M7: 45 | N7: =PRODUCT(L7/M7) -> 51.1 % | O7: 13 | P7: 27 | Q7: =PRODUCT(O7/P7) -> 48.1 % | R7: 79 | S7: =PRODUCT(G7+J7+M7+P7) -> 175 | T7: 45.1 % | V7: 1984 | W7: 9. | X7: KPL
B8: 1985 | C8: 4. | D8: KPL | E8: 22 | F8: 24 | G8: 60 | H8: =PRODUCT(F8/G8) -> 40.0 % | I8: 15 | J8: 38 | K8: =PRODUCT(I8/J8) -> 39.5 % | L8: 21 | M8: 33 | N8: =PRODUCT(L8/M8) -> 63.6 % | O8: 13 | P8: 34 | Q8: =PRODUCT(O8/P8) -> 38.2 % | R8: 73 | S8: =PRODUCT(G8+J8+M8+P8) -> 165 | T8: 44.3 % | V8: 1985 | W8: 4. | X8: KPL
B9: 1986 | C9: 12. | D9: KPL | E9: 22 | F9: 20 | G9: 62 | H9: =PRODUCT(F9/G9) -> 32.3 % | I9: 15 | J9: 37 | K9: =PRODUCT(I9/J9) -> 40.5 % | L9: 9 | M9: 28 | N9: =PRODUCT(L9/M9) -> 32.1 % | O9: 7 | P9: 24 | Q9: =PRODUCT(O9/P9) -> 29.2 % | R9: 51 | S9: =PRODUCT(G9+J9+M9+P9) -> 151 | T9: 33.8 % | V9: 1986 | W9: 12. | X9: KPL
B10: Yhteensä | E10: =SUM(E4:E9) -> 88 | F10: =SUM(F4:F9) -> 83 | G10: =SUM(G4:G9) -> 219 | H10: =PRODUCT(F10/G10) -> 37.9 % | I10: =SUM(I4:I9) -> 79 | J10: =SUM(J4:J9) -> 172 | K10: =PRODUCT(I10/J10) -> 45.9 % | L10: =SUM(L4:L9) -> 82 | M10: =SUM(M4:M9) -> 150 | N10: =PRODUCT(L10/M10) -> 54.7 % | O10: =SUM(O4:O9) -> 40 | P10: =SUM(P4:P9) -> 111 | Q10: =PRODUCT(O10/P10) -> 36.0 % | R10: =SUM(R4:R9) -> 284 | S10: =SUM(S4:S9) -> 652 | T10: =PRODUCT(R10/S10) -> 43.6 %
B12: KÄRKILYÖNNIT YLEMMISSÄ PUDOTUSPELEISSÄ | V12: VUOSITTAISET SIJOITUKSET TOP - 30
G13: 0 > 1 | J13: 1 > 2 | M13: 2 > 3 | P13: 3 > k | S13: Yhteensä
B14: Vuosi | C14: Sija | D14: Seura | E14: OTT | F14: KL | G14: YHT | H14: % | I14: KL | J14: YHT | K14: % | L14: KL | M14: YHT | N14: % | O14: KL | P14: YHT | Q14: % | R14: KL | S14: YHT | T14: % | V14: Vuosi | W14: Sija | X14: Seura | Y14: 0 > 1 | Z14: 1 > 2 | AA14: 2 > 3 | AB14: 3 > k | AC14: KL
B15: 1981 | C15: 9. | D15: KPL | V15: 1981 | W15: 9. | X15: KPL
B16: 1982 | C16: 11. | D16: KPL | V16: 1982 | W16: 11. | X16: KPL
B17: 1983 | V17: 1983
B18: 1984 | C18: 8. | D18: KPL | V18: 1984 | W18: 8. | X18: KPL
B19: 1985 | C19: 4. | D19: KPL | E19: 5 | F19: 5 | G19: 17 | H19: 29.4 % | I19: 1 | J19: 7 | K19: 14.3 % | L19: 2 | M19: 6 | N19: 33.3 % | O19: 3 | P19: 8 | Q19: 37.5 % | R19: 11 | S19: 38 | T19: 28.9 % | V19: 1985 | W19: 4. | X19: KPL | Y19: 20. | AB19: 19.
B20: 1986 | C20: 11. | D20: KPL | V20: 1986 | W20: 11. | X20: KPL
B21: Yhteensä | E21: =SUM(E13:E20) -> 5 | F21: =SUM(F15:F20) -> 5 | G21: =SUM(G15:G20) -> 17 | H21: =PRODUCT(F21/G21) -> 29.4 % | I21: =SUM(I15:I20) -> 1 | J21: =SUM(J15:J20) -> 7 | K21: =PRODUCT(I21/J21) -> 14.3 % | L21: =SUM(L15:L20) -> 2 | M21: =SUM(M15:M20) -> 6 | N21: =PRODUCT(L21/M21) -> 33.3 % | O21: =SUM(O15:O20) -> 3 | P21: =SUM(P15:P20) -> 8 | Q21: =PRODUCT(O21/P21) -> 37.5 % | R21: =SUM(R15:R20) -> 11 | S21: =SUM(S15:S20) -> 38 | T21: =PRODUCT(R21/S21) -> 28.9 %
B23: KÄRKILYÖNNIT
G24: 0 > 1 | J24: 1 > 2 | M24: 2 > 3 | P24: 3 > k | S24: Yhteensä
E25: OTT | F25: KL | G25: YHT | H25: % | I25: KL | J25: YHT | K25: % | L25: KL | M25: YHT | N25: % | O25: KL | P25: YHT | Q25: % | R25: KL | S25: YHT | T25: %
B26: RUNKOSARJA | E26: =PRODUCT(E10) -> 88 | F26: =PRODUCT(F10) -> 83 | G26: =PRODUCT(G10) -> 219 | H26: =PRODUCT(H10) -> 37.9 % | I26: =PRODUCT(I10) -> 79 | J26: =PRODUCT(J10) -> 172 | K26: =PRODUCT(K10) -> 45.9 % | L26: =PRODUCT(L10) -> 82 | M26: =PRODUCT(M10) -> 150 | N26: =PRODUCT(N10) -> 54.7 % | O26: =PRODUCT(O10) -> 40 | P26: =PRODUCT(P10) -> 111 | Q26: =PRODUCT(Q10) -> 36.0 % | R26: =PRODUCT(R10) -> 284 | S26: =PRODUCT(S10) -> 652 | T26: =PRODUCT(T10) -> 43.6 %
B27: PLAY OFF | E27: =PRODUCT(E21) -> 5 | F27: =PRODUCT(F21) -> 5 | G27: 17 | H27: 29.4 % | I27: 1 | J27: 7 | K27: 14.3 % | L27: 2 | M27: 6 | N27: 33.3 % | O27: 3 | P27: 8 | Q27: 37.5 % | R27: 11 | S27: 38 | T27: 28.9 %
